bitfinex/quotes_BTCUSD_20240701
["timestamp","ask_amount","ask_price","bid_price","bid_amount"]
[1719835486816,0.111,62811.0,62810.0,1.17497417]
[1719835487834,0.111,62811.0,62810.0,1.50339417]
[1719835488464,0.1007,62812.0,62810.0,1.50339417]
[1719835488465,0.0084,62812.0,62811.0,0.90282719]
[1719835488659,0.0084,62812.0,62811.0,1.07516617]
[1719835489101,0.0084,62812.0,62811.0,1.39358117]
[1719835490428,0.0084,62812.0,62811.0,1.40758117]
[1719835491604,0.0084,62812.0,62811.0,1.42158117]
[1719835492222,0.0084,62812.0,62811.0,1.50338117]
[1719835493118,0.0084,62812.0,62811.0,1.90338117]
[1719835493347,0.0084,62812.0,62811.0,3.03831117]
[1719835493537,0.1083,62822.0,62821.0,0.58438719]
[1719835493687,0.1083,62822.0,62821.0,0.82817517]
[1719835493884,0.1083,62822.0,62821.0,0.98735717]
[1719835494087,0.1083,62822.0,62821.0,0.56403619]
[1719835494088,0.585838,62822.0,62821.0,0.56403619]
[1719835494327,0.676738,62822.0,62821.0,0.58403619]
[1719835494979,0.1992,62822.0,62821.0,0.58403619]
[1719835495130,0.1992,62822.0,62821.0,0.74637517]
[1719835495347,0.1992,62822.0,62821.0,0.82817517]
[1719835495584,0.1992,62822.0,62821.0,0.84217517]
[1719835495779,0.1992,62822.0,62821.0,0.76037517]
[1719835496249,0.1992,62822.0,62821.0,0.77437517]
[1719835497787,0.358379,62822.0,62821.0,0.77437517]
[1719835498596,0.1992,62822.0,62821.0,1.01535717]
[1719835498800,0.1992,62822.0,62821.0,0.85652617]
[1719835499398,0.1992,62822.0,62821.0,0.84252617]
[1719835499598,0.1992,62822.0,62821.0,0.82852617]
[1719835499811,0.1992,62822.0,62821.0,0.85652617]
[1719835502035,0.1992,62822.0,62821.0,0.86652617]
[1719835502975,0.1992,62822.0,62821.0,1.18489017]
[1719835504168,0.115,62829.0,62828.0,0.564364]
[1719835504368,0.115,62829.0,62828.0,0.98733917]
[1719835504775,0.115,62829.0,62828.0,1.30566817]
[1719835505109,0.115,62829.0,62828.0,0.98733917]
[1719835505312,0.115,62829.0,62828.0,1.31866817]
[1719835505489,0.115,62829.0,62828.0,1.33266817]
[1719835505693,0.115,62829.0,62828.0,1.31966817]
[1719835506076,0.115,62829.0,62828.0,1.33366817]
[1719835506259,0.0084,62836.0,62834.0,0.2052]
[1719835506463,0.0084,62836.0,62835.0,0.58754417]
[1719835506664,0.0084,62836.0,62835.0,0.74637517]
[1719835506885,0.167544,62836.0,62835.0,0.74637517]
[1719835507085,0.350944,62836.0,62835.0,0.74637517]
[1719835507402,0.98752,62836.0,62835.0,0.56403619]
[1719835508179,0.98752,62836.0,62835.0,0.58403619]
[1719835508519,0.98752,62836.0,62835.0,0.57703619]
[1719835509478,0.98752,62836.0,62835.0,0.60803619]
[1719835509679,0.98752,62836.0,62835.0,0.58803619]
[1719835510106,0.98752,62836.0,62835.0,0.60803619]
[1719835510981,0.350944,62836.0,62835.0,0.77037517]
[1719835511180,0.260844,62836.0,62835.0,0.85217517]
[1719835511352,0.1017,62836.0,62835.0,0.85217517]
[1719835511753,0.0084,62836.0,62835.0,0.69334417]
[1719835512655,0.0084,62836.0,62835.0,0.85249017]
[1719835512855,0.0084,62836.0,62835.0,1.17078317]
[1719835513147,0.0084,62836.0,62835.0,1.14678317]
[1719835513328,0.0084,62836.0,62835.0,1.16078317]
[1719835514563,0.0084,62836.0,62835.0,1.17478317]
[1719835515071,0.254644,62836.0,62835.0,0.61554417]
[1719835515280,0.344844,62836.0,62835.0,0.61554417]
[1719835517547,0.1857,62836.0,62835.0,0.61554417]
[1719835517750,0.0986,62836.0,62835.0,0.61554417]
[1719835518356,0.0084,62836.0,62835.0,0.77469017]
[1719835518522,0.0084,62836.0,62835.0,0.78469017]
[1719835518725,0.0084,62836.0,62835.0,1.10298317]
[1719835519309,0.0084,62836.0,62835.0,1.42127617]
[1719835521047,0.0084,62836.0,62835.0,1.40727617]
[1719835521271,0.0084,62836.0,62835.0,1.42127617]
[1719835521475,0.0084,62836.0,62835.0,1.40727617]
[1719835521680,0.0084,62836.0,62835.0,1.42127617]
[1719835523450,0.0084,62836.0,62835.0,1.50307617]
[1719835523651,0.0084,62836.0,62835.0,1.42127617]
[1719835523854,0.0084,62836.0,62835.0,1.50307617]
[1719835524347,0.0084,62836.0,62835.0,1.09298317]
[1719835524551,0.0084,62836.0,62835.0,1.17478317]
[1719835525331,0.0084,62836.0,62835.0,1.19362845]
[1719835526083,0.326688,62836.0,62835.0,0.63438945]
[1719835526289,0.485832,62836.0,62835.0,0.63438945]
[1719835528134,0.167544,62836.0,62835.0,0.63438945]
[1719835528362,0.0084,62836.0,62835.0,1.12608245]
[1719835528559,0.0084,62836.0,62835.0,1.29522845]
[1719835528764,0.0084,62836.0,62835.0,1.61352145]
[1719835528988,0.0084,62836.0,62835.0,1.93181445]
[1719835529483,0.0084,62836.0,62835.0,2.13181445]
[1719835529626,0.0084,62836.0,62835.0,1.93181445]
[1719835530051,0.0084,62836.0,62835.0,1.91296917]
[1719835530882,0.0084,62836.0,62835.0,1.89896917]
[1719835531086,0.0084,62836.0,62835.0,1.88496917]
[1719835531397,0.0084,62836.0,62835.0,1.91296917]
[1719835531898,0.0084,62836.0,62835.0,2.31296917]
[1719835532838,0.0084,62836.0,62835.0,2.11296917]
[1719835533247,0.0084,62836.0,62835.0,2.31296917]
[1719835537358,0.0084,62836.0,62835.0,2.51296917]
[1719835537558,0.0084,62836.0,62835.0,2.61296917]
[1719835538262,0.0084,62836.0,62835.0,2.93126217]
[1719835539503,0.0084,62836.0,62835.0,3.24955517]
[1719835539701,0.0084,62853.0,62852.0,1.23072219]
[1719835539899,0.0084,62853.0,62852.0,1.55189217]
[1719835540059,0.0084,62853.0,62852.0,1.63369217]
[1719835540060,0.00829437,62853.0,62852.0,1.63369217]
[1719835541029,0.00829437,62853.0,62852.0,1.64369217]
[1719835541373,0.00829437,62853.0,62852.0,1.84369217]
[1719835541571,0.00829437,62853.0,62852.0,1.90829217]
[1719835541797,0.00829437,62853.0,62852.0,1.91929217]
[1719835541994,0.00829437,62853.0,62852.0,1.92029217]
[1719835542447,0.00829437,62853.0,62852.0,2.25249917]
[1719835543236,0.00829437,62853.0,62852.0,2.63849917]
[1719835543435,0.00829437,62853.0,62852.0,2.62649917]
[1719835543706,0.00829437,62853.0,62852.0,2.64049917]
[1719835544120,0.00829437,62853.0,62852.0,3.37091317]
[1719835544327,0.0084,62873.0,62852.0,3.37091317]
[1719835544328,0.1807,62873.0,62872.0,1.23047019]
[1719835544525,0.1807,62873.0,62872.0,1.63344017]
[1719835544934,0.1807,62873.0,62872.0,1.31533417]
[1719835545349,0.1067,62873.0,62872.0,1.55164017]
[1719835545556,0.1067,62873.0,62872.0,0.52637517]
[1719835545762,0.35670301,62873.0,62872.0,0.74637517]
[1719835545971,0.19765301,62873.0,62872.0,0.74637517]
[1719835546170,0.99290501,62873.0,62872.0,0.57803619]
[1719835546913,0.67480401,62873.0,62872.0,0.61203619]
[1719835547107,0.35670301,62873.0,62872.0,0.77437517]
[1719835547310,0.67480401,62873.0,62872.0,0.76037517]
[1719835547519,0.19765301,62873.0,62872.0,0.76037517]
[1719835547722,0.19765301,62873.0,62872.0,0.77137517]
[1719835547930,0.19765301,62873.0,62872.0,0.75737517]
[1719835548128,0.19765301,62873.0,62872.0,0.77137517]
[1719835548380,0.19765301,62873.0,62872.0,0.76037517]
[1719835548670,0.02535301,62873.0,62872.0,0.91542817]
[1719835548880,0.02535301,62873.0,62872.0,1.24753417]
[1719835549082,0.02535301,62873.0,62872.0,1.23353417]
[1719835549288,0.02535301,62873.0,62872.0,1.75164017]
[1719835549289,0.0084,62873.0,62872.0,1.75164017]
[1719835549492,0.0084,62873.0,62872.0,1.96944017]
[1719835549727,0.0084,62873.0,62872.0,1.08870317]
[1719835549933,0.0084,62873.0,62872.0,1.08670317]
[1719835550549,0.0084,62873.0,62872.0,1.07470317]
[1719835550823,0.0084,62873.0,62872.0,1.08870317]
[1719835552016,0.0084,62873.0,62872.0,1.10270317]
[1719835552218,0.0084,62873.0,62872.0,1.08870317]
[1719835552632,0.0084,62873.0,62872.0,1.42080917]
[1719835552839,0.0084,62873.0,62872.0,0.61554417]
[1719835553039,0.0084,62873.0,62872.0,0.60154417]
[1719835553464,0.02543627,62873.0,62872.0,0.61554417]
[1719835553665,0.02543627,62873.0,62872.0,0.78459717]
[1719835553839,0.02543627,62873.0,62872.0,1.10270317]
[1719835554041,0.0084,62873.0,62872.0,1.08870317]
[1719835554243,0.0084,62873.0,62872.0,1.06470317]
[1719835554623,0.0084,62873.0,62872.0,1.07870317]
[1719835554845,0.0084,62873.0,62872.0,1.09270317]
[1719835555665,0.0084,62873.0,62872.0,1.10270317]
[1719835556072,0.0084,62873.0,62872.0,1.09270317]
[1719835556279,0.0084,62873.0,62872.0,1.10270317]
[1719835556501,0.0084,62873.0,62872.0,1.09270317]
[1719835556643,0.0084,62873.0,62872.0,0.61554417]
[1719835556849,0.0084,62873.0,62872.0,0.78459717]
[1719835557055,0.02543627,62873.0,62872.0,1.62080917]
[1719835557255,0.02543627,62873.0,62872.0,0.63442259]
[1719835557438,0.0084,62873.0,62872.0,0.63442259]
[1719835557611,0.0084,62873.0,62872.0,0.96252859]
[1719835557816,0.02543627,62873.0,62872.0,0.79347559]
[1719835558148,0.02547481,62873.0,62872.0,0.80347559]
[1719835559402,0.02547481,62873.0,62872.0,1.12158159]
[1719835560561,0.02547481,62873.0,62872.0,1.83968759]
[1719835560770,0.0084,62873.0,62872.0,2.12549359]
[1719835561397,0.0084,62873.0,62872.0,2.11149359]
[1719835561609,0.0084,62873.0,62872.0,2.09749359]
[1719835561813,0.0084,62873.0,62872.0,2.12549359]
[1719835562223,0.0084,62873.0,62872.0,2.11149359]
[1719835562459,0.0084,62873.0,62872.0,1.60738759]
[1719835562683,0.0084,62873.0,62872.0,1.43968759]
[1719835562893,0.1803,62873.0,62872.0,0.77947559]
[1719835563067,0.1803,62873.0,62872.0,0.78947559]
[1719835563299,0.1803,62873.0,62872.0,1.09358159]
[1719835563470,0.19733903,62873.0,62872.0,1.09358159]
[1719835563608,0.1803,62873.0,62872.0,1.09358159]
[1719835563861,0.1803,62873.0,62872.0,1.09758159]
[1719835564268,0.1803,62873.0,62872.0,1.11158159]
[1719835564473,0.1803,62873.0,62872.0,1.08358159]
[1719835565010,0.1047,62873.0,62872.0,1.12158159]
[1719835565175,0.1047,62873.0,62872.0,1.10758159]
[1719835565376,0.1047,62873.0,62872.0,1.12158159]
[1719835565997,0.1047,62873.0,62872.0,1.11158159]
[1719835566199,0.0084,62873.0,62872.0,1.10758159]
[1719835566610,0.0084,62873.0,62872.0,1.12158159]
[1719835567387,0.0084,62873.0,62872.0,1.43968759]
[1719835569206,0.0084,62873.0,62872.0,1.11158159]
[1719835569588,0.0084,62873.0,62872.0,1.12158159]
[1719835571215,0.0084,62873.0,62872.0,1.11158159]
[1719835571439,0.0084,62873.0,62872.0,1.12158159]
[1719835574181,0.0084,62873.0,62872.0,2.53249359]
[1719835574383,0.0084,62873.0,62872.0,2.76470182]
[1719835574592,1e-08,62873.0,62872.0,3.08280782]
[1719835575216,1e-08,62873.0,62872.0,3.06880782]
[1719835575655,1e-08,62873.0,62872.0,3.11203817]
[1719835575858,1e-08,62873.0,62872.0,2.96582994]
[1719835576069,1e-08,62873.0,62872.0,3.11203223]
[1719835577039,0.0084,62874.0,62872.0,3.11203223]
[1719835577040,0.00414721,62874.0,62873.0,2.63965919]
[1719835577242,0.00414721,62874.0,62873.0,3.39683146]
[1719835578076,0.00414721,62874.0,62873.0,3.41083146]
[1719835579207,0.00414721,62874.0,62873.0,3.4108292]
[1719835579333,0.00414721,62874.0,62873.0,2.2118272]
[1719835579541,0.00414721,62874.0,62873.0,2.24842717]
[1719835579802,0.00414721,62874.0,62873.0,2.15452717]
[1719835580085,0.00414721,62874.0,62873.0,2.07962717]
[1719835580487,0.00414721,62874.0,62873.0,2.39772817]
[1719835580692,0.00414721,62874.0,62873.0,2.27962717]
[1719835580894,0.00414721,62874.0,62873.0,2.07962717]
[1719835581460,0.08134721,62874.0,62873.0,0.93342517]
[1719835581647,0.08134721,62874.0,62873.0,1.46152617]
[1719835581852,0.00414721,62874.0,62873.0,1.97962717]
[1719835582221,0.00414721,62874.0,62873.0,2.37582817]
[1719835582426,0.00414721,62874.0,62873.0,2.21699717]
[1719835582740,0.00414721,62874.0,62873.0,2.41699717]
[1719835583190,0.00414721,62874.0,62873.0,2.33889717]
[1719835583387,0.00414721,62874.0,62873.0,2.73229817]
[1719835583825,0.00414721,62874.0,62873.0,2.86449832]
[1719835584026,0.0084,62885.0,62884.0,2.02366219]
[1719835584230,0.0084,62885.0,62884.0,2.54863217]
[1719835585451,0.0084,62885.0,62884.0,2.56263217]
[1719835585652,0.0084,62885.0,62884.0,2.57663217]
[1719835585829,0.0084,62885.0,62884.0,2.37663217]
[1719835586038,0.0084,62885.0,62884.0,1.95928717]
[1719835586211,0.0084,62885.0,62884.0,1.76548717]
[1719835586591,0.0084,62885.0,62884.0,1.77948717]
[1719835586802,0.0084,62885.0,62884.0,1.97948717]
[1719835587221,0.0084,62885.0,62884.0,2.29753217]
[1719835587554,0.0084,62885.0,62884.0,1.97948717]
[1719835587757,0.0084,62885.0,62884.0,1.77948717]
[1719835588468,0.0084,62885.0,62884.0,2.09753217]
[1719835588679,0.0084,62885.0,62884.0,2.29753217]
[1719835589361,0.0084,62885.0,62884.0,2.13870117]
[1719835590211,0.0084,62885.0,62884.0,2.61140117]
[1719835591722,0.0084,62885.0,62884.0,2.59740117]
[1719835592145,0.0084,62885.0,62884.0,2.64056471]
[1719835592769,0.0084,62885.0,62884.0,2.83036471]
[1719835593202,0.0084,62885.0,62884.0,2.84436471]
[1719835594463,0.0084,62885.0,62884.0,3.16240971]
[1719835594630,0.0084,62885.0,62884.0,2.84436471]
[1719835595261,0.0084,62885.0,62884.0,2.83036471]
[1719835595467,1e-08,62885.0,62884.0,3.16718583]
[1719835595692,0.0084,62899.0,62898.0,1.74811719]
[1719835595903,0.0084,62899.0,62898.0,2.47308717]
[1719835596394,0.0084,62899.0,62898.0,3.09106217]
[1719835596621,0.0084,62899.0,62898.0,2.57308717]
[1719835596813,0.0084,62899.0,62898.0,2.77308717]
[1719835597019,0.0084,62899.0,62898.0,2.78708717]
[1719835597458,0.0084,62899.0,62898.0,2.58708717]
[1719835598098,0.0084,62899.0,62898.0,2.78708717]
[1719835598512,0.0084,62899.0,62898.0,2.58708717]
[1719835598739,0.0084,62899.0,62898.0,2.06911217]
[1719835598962,0.0084,62899.0,62898.0,1.86531217]
[1719835599399,0.0084,62899.0,62898.0,1.87931217]
[1719835599570,0.0084,62899.0,62898.0,1.85531217]
[1719835599769,0.0084,62899.0,62898.0,1.86531217]
[1719835600233,0.0084,62899.0,62898.0,0.77437517]
[1719835600234,0.0849,62899.0,62898.0,0.77437517]
[1719835600457,0.1829,62899.0,62898.0,0.74037517]
[1719835600664,0.2001367,62899.0,62898.0,0.76037517]
[1719835600833,0.1829,62899.0,62898.0,0.77437517]
[1719835601042,0.20011599,62899.0,62898.0,0.61554417]
[1719835602529,0.20011599,62899.0,62898.0,0.60154417]
[1719835602723,0.20011599,62899.0,62898.0,0.61554417]
[1719835603042,0.20011599,62899.0,62898.0,0.60154417]
[1719835603430,0.20011599,62899.0,62898.0,0.61554417]
[1719835603894,0.20011599,62899.0,62898.0,0.62554417]
[1719835604103,0.20011599,62899.0,62898.0,0.61554417]
[1719835604656,0.1829,62899.0,62898.0,0.61554417]
[1719835605085,0.2001027,62899.0,62898.0,0.61554417]
[1719835605430,0.2001027,62899.0,62898.0,0.58754417]
[1719835605546,0.3590877,62899.0,62898.0,0.58754417]
[1719835605741,0.3590877,62899.0,62898.0,0.60154417]
[1719835605989,1.3129977,62899.0,62898.0,0.22000519]
[1719835606163,1.3129977,62899.0,62898.0,0.41920519]
[1719835606364,1.3129977,62899.0,62898.0,0.43320519]
[1719835606620,1.3129977,62899.0,62898.0,0.41920519]
[1719835606763,1.3129977,62899.0,62898.0,0.40520519]
[1719835606968,1.3129977,62899.0,62898.0,0.43809537]
[1719835607173,1.3129977,62899.0,62898.0,0.40520519]
[1719835607575,1.3129977,62899.0,62898.0,0.23400519]
[1719835608417,1.6309677,62899.0,62898.0,0.23400519]
[1719835608820,1.6309677,62899.0,62898.0,0.04800519]
[1719835609202,1.6309677,62899.0,62898.0,0.23400519]
[1719835609422,1.6309677,62899.0,62898.0,0.24800519]
[1719835609628,1.6309677,62899.0,62898.0,0.23400519]
[1719835610066,1.6309677,62899.0,62898.0,0.24800519]
[1719835610273,1.6309677,62899.0,62898.0,0.43320519]
[1719835610477,1.3129977,62899.0,62898.0,0.43320519]
[1719835611443,1.3129977,62899.0,62898.0,0.45320519]
[1719835611644,0.6770577,62899.0,62898.0,0.45320519]
[1719835612268,0.9950277,62899.0,62898.0,0.45320519]
[1719835614188,0.2001027,62899.0,62898.0,0.61554417]
[1719835614783,0.0256027,62899.0,62898.0,0.61554417]
[1719835615017,0.0084,62899.0,62898.0,1.09250617]
[1719835615360,0.0255959,62899.0,62898.0,1.09250617]
[1719835615507,0.0872,62899.0,62898.0,0.61554417]
[1719835615714,0.5813509,62899.0,62898.0,0.61554417]
[1719835615926,0.5813509,62899.0,62898.0,0.59554417]
[1719835617548,0.8993209,62899.0,62898.0,0.59554417]
[1719835617748,0.9909209,62899.0,62898.0,0.59554417]
[1719835618004,0.9909209,62899.0,62898.0,0.24800519]
[1719835618005,1.3088909,62899.0,62898.0,0.24800519]
[1719835620648,1.3088909,62899.0,62898.0,0.43320519]
[1719835621635,1.3088909,62899.0,62898.0,0.45320519]
[1719835621839,0.9909209,62899.0,62898.0,0.45320519]
[1719835622451,0.6729509,62899.0,62898.0,0.45320519]
[1719835622878,0.6729509,62899.0,62898.0,0.61554417]
[1719835622879,0.18227858,62899.0,62898.0,0.61554417]
[1719835623089,0.50024858,62899.0,62898.0,0.61554417]
[1719835623301,0.18227858,62899.0,62898.0,0.61554417]
[1719835623501,0.26137858,62899.0,62898.0,0.61554417]
[1719835625046,0.57934858,62899.0,62898.0,0.61554417]
[1719835625247,0.10239358,62899.0,62898.0,0.61554417]
[1719835625649,0.26137858,62899.0,62898.0,0.61554417]
[1719835626806,0.10239358,62899.0,62898.0,0.61554417]
[1719835627136,0.57934858,62899.0,62898.0,0.61554417]
[1719835627571,0.99461858,62899.0,62898.0,0.59554417]
[1719835629341,0.99461858,62899.0,62898.0,0.43320519]
[1719835629342,1.31258858,62899.0,62898.0,0.43320519]
[1719835629559,1.31258858,62899.0,62898.0,0.43124065]
[1719835630189,1.31258858,62899.0,62898.0,0.24604065]
[1719835630309,1.31258858,62899.0,62898.0,0.43124065]
[1719835633793,1.31258858,62899.0,62898.0,0.24604065]
[1719835635577,1.63055858,62899.0,62898.0,0.24604065]
[1719835635801,1.63055858,62899.0,62898.0,0.23204065]
[1719835635979,1.63055858,62899.0,62898.0,0.24104065]
[1719835636399,1.63055858,62899.0,62898.0,0.23204065]
[1719835636599,1.63055858,62899.0,62898.0,0.21804065]
[1719835636600,1.64725695,62899.0,62898.0,0.21804065]
[1719835637052,1.64725695,62899.0,62898.0,0.22604065]
[1719835637571,1.64725695,62899.0,62898.0,0.21804065]
[1719835637775,1.64725695,62899.0,62898.0,0.22604065]
[1719835638198,1.64725695,62899.0,62898.0,0.42024065]
[1719835638399,1.63055858,62899.0,62898.0,0.42024065]
[1719835638748,1.32933632,62899.0,62898.0,0.42024065]
[1719835639853,1.32937224,62899.0,62898.0,0.42024065]
[1719835641833,1.31258858,62899.0,62898.0,0.42024065]
[1719835642080,1.3294329,62899.0,62898.0,0.42024065]
[1719835642595,1.98414806,62899.0,62898.0,0.017]
[1719835642766,2.48123267,62899.0,62898.0,0.017]
[1719835643073,2.54574492,62899.0,62898.0,0.017]
[1719835643277,2.68885383,62899.0,62898.0,0.017]
[1719835643597,3.1937539,62899.0,62898.0,0.017]
[1719835643748,1.113052,62890.0,62889.0,0.000924]
[1719835643928,1.96222874,62890.0,62889.0,0.000924]
[1719835644127,1.99854376,62890.0,62889.0,0.000924]
[1719835644359,2.29961163,62890.0,62889.0,0.000924]
[1719835645478,2.25829702,62890.0,62889.0,0.000924]
[1719835645633,2.25829702,62890.0,62889.0,0.013924]
[1719835646063,2.29962177,62890.0,62889.0,0.013924]
[1719835646263,2.31442177,62890.0,62889.0,0.013924]
[1719835646487,2.31442177,62890.0,62889.0,0.000924]
[1719835646689,2.29962177,62890.0,62889.0,0.000924]
[1719835647036,2.47676075,62890.0,62889.0,0.000924]
[1719835647239,2.63909446,62890.0,62889.0,0.000924]
[1719835647434,2.80679446,62890.0,62889.0,0.000924]
[1719835647594,2.80779446,62890.0,62889.0,0.011924]
[1719835647934,2.79299446,62890.0,62889.0,0.000924]
[1719835648140,2.81179446,62890.0,62889.0,0.000924]
[1719835648361,2.80199446,62890.0,62889.0,0.001924]
[1719835648604,2.81679446,62890.0,62889.0,0.001924]
[1719835648807,1.602997,62880.0,62879.0,0.158831]
[1719835649019,1.625997,62880.0,62879.0,0.158831]
[1719835649172,1.63926011,62880.0,62879.0,0.158831]
[1719835650818,1.63926011,62880.0,62879.0,0.160831]
[1719835651629,1.63926011,62880.0,62879.0,0.005]
[1719835652177,2.11965982,62880.0,62879.0,0.005]
[1719835652427,2.21965982,62880.0,62879.0,0.005]
[1719835652616,2.23445982,62880.0,62879.0,0.005]
[1719835653277,2.3967988,62880.0,62879.0,0.005]
[1719835653621,1.603332,62874.0,62873.0,0.000924]
[1719835653823,2.148228,62874.0,62873.0,0.000924]
[1719835653974,2.26140685,62874.0,62873.0,0.000924]
[1719835654757,2.42374056,62874.0,62873.0,0.000924]
[1719835654971,2.43854056,62874.0,62873.0,0.001924]
[1719835655293,2.42374056,62874.0,62873.0,0.000924]
[1719835655680,2.43854056,62874.0,62873.0,0.000924]
[1719835655884,2.42374056,62874.0,62873.0,0.000924]
[1719835656200,2.42474056,62874.0,62873.0,0.000924]
[1719835656378,2.26240685,62874.0,62873.0,0.000924]
[1719835656763,2.26240685,62874.0,62873.0,0.001924]
[1719835657186,2.26240685,62874.0,62873.0,0.000924]
[1719835657701,2.26440685,62874.0,62873.0,0.000924]
[1719835658449,1.74251085,62874.0,62873.0,0.000924]
[1719835663840,1.94631085,62874.0,62873.0,0.000924]
[1719835666172,1.94331085,62874.0,62873.0,0.000924]
[1719835666379,1.95231085,62874.0,62873.0,0.000924]
[1719835666733,1.94831085,62874.0,62873.0,0.000924]
[1719835667166,1.95331085,62874.0,62873.0,0.000924]
[1719835667342,2.27140685,62874.0,62873.0,0.000924]
[1719835667544,2.26640685,62874.0,62873.0,0.000924]
[1719835667869,2.28020685,62874.0,62873.0,0.000924]
[1719835668073,2.26840685,62874.0,62873.0,0.000924]
[1719835668272,2.26540685,62874.0,62873.0,0.000924]
[1719835668688,2.27040685,62874.0,62873.0,0.000924]
[1719835668861,2.26540685,62874.0,62873.0,0.000924]
[1719835669229,2.42374056,62874.0,62873.0,0.000924]
[1719835669561,3.09167554,62874.0,62873.0,0.000924]
[1719835669774,3.09167554,62874.0,62873.0,1e-06]
[1719835669775,3.10887795,62874.0,62873.0,1e-06]
[1719835669988,3.15221716,62874.0,62873.0,1e-06]
[1719835670217,3.16021716,62874.0,62873.0,0.001001]
[1719835670613,3.34217651,62874.0,62873.0,0.001001]
[1719835670855,3.33417651,62874.0,62873.0,1e-06]
[1719835671094,3.34317651,62874.0,62873.0,1e-06]
[1719835671327,0.1675,62854.0,62852.0,0.47591475]
[1719835671545,0.681103,62853.0,62852.0,0.63474575]
[1719835671763,1.35358479,62853.0,62852.0,0.158831]
[1719835671979,1.67178679,62853.0,62852.0,0.158831]
[1719835672936,1.67278679,62853.0,62852.0,0.158831]
[1719835674463,1.67378679,62853.0,62852.0,0.158831]
[1719835676851,1.431931,62852.0,62851.0,0.01804065]
[1719835677091,0.341207,62852.0,62851.0,0.01804065]
[1719835677407,1.46797608,62852.0,62851.0,0.01804065]
[1719835677768,1.46797608,62852.0,62848.0,0.20324065]
[1719835677769,1.11378,62849.0,62848.0,0.20324065]
[1719835678003,1.11378,62849.0,62848.0,0.50094065]
[1719835678004,0.795557,62849.0,62848.0,0.50094065]
[1719835678236,0.49038576,62849.0,62848.0,0.91611063]
[1719835678688,0.80860876,62849.0,62848.0,0.89611063]
[1719835678914,0.80860876,62849.0,62848.0,0.91611063]
[1719835679912,0.80960876,62849.0,62848.0,0.92711063]
[1719835680146,0.49138576,62849.0,62848.0,0.92711063]
[1719835680386,0.49138576,62849.0,62848.0,0.93911063]
[1719835680387,0.49238576,62849.0,62848.0,0.93911063]
[1719835683033,0.49238576,62849.0,62848.0,0.78027963]
[1719835685299,0.01505176,62849.0,62848.0,0.78027963]
[1719835685736,0.01503314,62849.0,62848.0,0.78027963]
[1719835686761,0.01503314,62849.0,62848.0,0.78120363]
[1719835687367,0.17414414,62849.0,62848.0,0.78120363]
[1719835687788,0.49236714,62849.0,62848.0,0.78120363]
[1719835687993,0.49236714,62849.0,62848.0,0.57600363]
[1719835688201,0.17414414,62849.0,62848.0,0.76120363]
[1719835688766,0.17414414,62849.0,62848.0,0.78120363]
[1719835692405,0.81059014,62849.0,62848.0,0.76120363]
[1719835693449,1.12881314,62849.0,62848.0,0.24196465]
[1719835693647,1.20831314,62849.0,62848.0,0.24196465]
[1719835694457,1.20831314,62849.0,62848.0,0.04196465]
[1719835694458,1.64333614,62849.0,62848.0,0.04196465]
[1719835695499,1.64333614,62849.0,62848.0,0.03941465]
[1719835695640,1.64233614,62849.0,62848.0,0.02841465]
[1719835696051,1.64233614,62849.0,62848.0,0.01841465]
[1719835696052,1.64133614,62849.0,62848.0,0.01841465]
[1719835696481,1.64133614,62849.0,62848.0,0.02141465]
[1719835696895,1.32311314,62849.0,62848.0,0.02141465]
[1719835697121,1.32311314,62849.0,62848.0,0.48311465]
[1719835697122,1.12681314,62849.0,62848.0,0.48311465]
[1719835697327,1.12681314,62849.0,62848.0,0.48011465]
[1719835697660,1.12681314,62849.0,62848.0,0.21841465]
[1719835697874,1.12681314,62849.0,62848.0,0.21641465]
[1719835698069,1.12681314,62849.0,62848.0,0.40161465]
[1719835698272,1.12681314,62849.0,62848.0,0.21641465]
[1719835698480,1.12681314,62849.0,62848.0,0.40161465]
[1719835698891,1.12681314,62849.0,62848.0,0.40361465]
[1719835699276,1.12681314,62849.0,62848.0,0.21841465]
[1719835699682,1.12681314,62849.0,62848.0,0.21741465]
[1719835700039,1.12681314,62849.0,62848.0,0.21941465]
[1719835700295,1.44503614,62849.0,62848.0,0.01941465]
[1719835700473,1.66097932,62849.0,62848.0,0.01941465]
[1719835700705,1.34275632,62849.0,62848.0,0.01941465]
[1719835701187,1.66095978,62849.0,62848.0,0.01841465]
[1719835701535,1.34273678,62849.0,62848.0,0.01841465]
[1719835701734,1.34273678,62849.0,62848.0,0.01641465]
[1719835702146,1.34773678,62849.0,62848.0,0.01641465]
[1719835702530,1.34573678,62849.0,62848.0,0.01641465]
[1719835702761,1.34273678,62849.0,62848.0,0.01841465]
[1719835704024,1.34273678,62849.0,62848.0,0.20461465]
[1719835704484,1.34268908,62849.0,62848.0,0.01941465]
[1719835704859,1.34268908,62849.0,62848.0,0.20461465]
[1719835705020,1.34268908,62849.0,62848.0,0.01941465]
[1719835707399,1.26538908,62849.0,62848.0,0.01941465]
[1719835707607,1.26544006,62849.0,62848.0,0.01941465]
[1719835709711,1.24811314,62849.0,62848.0,0.01941465]
[1719835709941,1.26563177,62849.0,62848.0,0.01941465]
[1719835710682,1.34163177,62849.0,62848.0,0.01941465]
[1719835711068,1.34142077,62849.0,62848.0,0.01941465]
[1719835711653,1.34141924,62849.0,62848.0,0.01941465]
[1719835714245,1.34142562,62849.0,62848.0,0.01941465]
[1719835714481,1.26542562,62849.0,62848.0,0.01941465]
[1719835716688,1.26542562,62849.0,62848.0,0.01441465]
[1719835717088,1.11385,62845.0,62844.0,0.01441465]
[1719835717294,0.57207648,62845.0,62844.0,0.17324565]
[1719835717491,0.99435477,62845.0,62844.0,0.17324565]
[1719835717697,1.33559777,62845.0,62844.0,0.17324565]
[1719835717899,1.41719777,62845.0,62844.0,0.17324565]
[1719835718328,1.41719777,62845.0,62844.0,0.17424565]
[1719835718719,1.73544077,62845.0,62844.0,0.17624565]
[1719835719038,1.73544077,62845.0,62844.0,0.158831]
[1719835719702,1.73544077,62845.0,62844.0,0.159755]
[1719835719877,1.73544077,62845.0,62844.0,0.161755]
[1719835719878,1.65384077,62845.0,62844.0,0.161755]
[1719835720669,1.65456931,62845.0,62844.0,0.161755]
[1719835720865,1.65456931,62845.0,62844.0,0.162755]
[1719835721850,1.81690302,62845.0,62844.0,0.162755]
[1719835722051,1.9582564,62845.0,62844.0,0.162755]
[1719835722454,1.9582564,62845.0,62844.0,0.003924]
[1719835722708,2.2912994,62845.0,62844.0,0.002924]
[1719835722914,2.60653838,62845.0,62844.0,0.002924]
[1719835723142,2.81053838,62845.0,62844.0,0.000924]